[Event "21st IPCA World Championship 2022"]
[Site "Ashdod"]
[Date "2022.05.12"]
[Round "4.10"]
[White "Vardi, Moshe"]
[Black "Shchukina, Ekaterina"]
[Result "1-0"]
[ECO "B56"]
[WhiteElo "1631"]
[BlackElo "1496"]
[Annotator "NA RC COMBH"]
[PlyCount "69"]
[EventDate "2022.05.09"]
[EventType "swiss"]
[EventCountry "ISR"]
[SourceTitle "playchess.com"]
[Source "ChessBase"]
[SourceQuality "1"]
[TimeControl "5400+30"]

1. e4 {[%emt 0:02:36]} c5 {[%emt 0:00:38]} 2. Nf3 {[%emt 0:00:19]} d6 {[%emt 0:00:16]} 3. d4 {[%emt 0:00:11]} cxd4 {[%emt 0:00:09]} 4. Nxd4 {[%emt 0:00:01]} Nf6 {[%emt 0:00:19]} 5. Nc3 {[%emt 0:00:17]} g6 {[%emt 0:00:09]} 6. Bd3 {[%emt 0:00:43]} Nc6 {[%emt 0:00:16]} 7. Nxc6 {[%emt 1:29:53]} bxc6 {[%emt 1:32:13]} 8. O-O {[%emt 0:00:00]} Bg7 {[%emt 0:00:00]} 9. Kh1 {[%emt 0:00:00]} O-O {[%emt 0:00:00]} 10. h3 {[%emt 0:00:00]} Rb8 {[%emt 0:00:00]} 11. f4 {[%emt 0:00:00]} Nd7 {[%emt 0:00:00]} 12. Qe1 {[%emt 0:00:00]} Nc5 {[%emt 0:00:00]} 13. f5 {[%emt 0:00:00]} Nxd3 {[%emt 0:00:00]} 14. cxd3 {[%emt 0:00:00]} Ba6 {[%emt 0:00:00]} 15. Rf3 {[%emt 0:00:00]} Qa5 {[%emt 0:00:00]} 16. a3 {[%emt 0:00:00]} Rb3 {[%emt 0:00:00]} 17. Ra2 {[%emt 0:05:00]} Bxc3 {[%emt 0:00:00]} 18. bxc3 {[%emt 0:00:00]} Qxc3 {[%emt 0:00:00]} 19. Bd2 {[%emt 0:00:00]} Qd4 {[%emt 0:00:00]} 20. fxg6 {[%emt 0:00:00]} hxg6 {[%emt 0:00:00]} 21. Qh4 {[%emt 0:00:00]} e6 {[%emt 0:00:00]} 22. Bg5 {[%emt 0:00:00]} Rb1+ {[%emt 0:00:00]} 23. Kh2 {[%emt 0:00:00]} f5 {[%emt 0:01:08]} 24. Raf2 {[%emt 0:00:00]} Rb7 {[%emt 0:03:16]} 25. Bh6 {[%emt 0:00:00]} Rff7 {[%emt 0:00:31]} 26. Qg3 {[%emt 0:00:00]} Qe5 {[%emt 0:01:12]} 27. Bf4 {[%emt 0:00:00]} Qg7 {[%emt 0:00:29]} 28. Bxd6 {[%emt 0:00:00]} fxe4 {[%emt 0:00:34]} 29. dxe4 {[%emt 0:00:00]} Rxf3 {[%emt 0:00:14]} 30. Rxf3 {[%emt 0:00:00]} Rf7 {[%emt 0:00:36]} 31. Rb3 {[%emt 0:00:00]} Bb5 {[%emt 0:00:23]} 32. a4 {[%emt 0:07:30]} Bxa4 {[%emt 0:00:13]} 33. Rb8+ {[%emt 0:00:00]} Kh7 {[%emt 0:00:08]} 34. Qh4+ {[%emt 0:00:00]} Qh6 {[%emt 0:00:06]} 35. Rh8+ {[%emt 0:00:00]} 1-0

[Event "21st IPCA World Championship 2022"]
[Site "Ashdod"]
[Date "2022.05.12"]
[Round "4.11"]
[White "Oliel, Yehonatan"]
[Black "Klein, Djimmy"]
[Result "1-0"]
[ECO "C56"]
[WhiteElo "1535"]
[BlackElo "1392"]
[Annotator "NA RC COMBH"]
[PlyCount "108"]
[EventDate "2022.05.09"]
[EventType "swiss"]
[EventCountry "ISR"]
[SourceTitle "playchess.com"]
[Source "ChessBase"]
[SourceQuality "1"]
[TimeControl "5400+30"]

1. e4 {[%emt 0:00:13]} e5 {[%emt 0:00:08]} 2. Nf3 {[%emt 0:00:23]} Nc6 {[%emt 0:00:06]} 3. d4 {[%emt 0:00:32]} exd4 {[%emt 0:00:11]} 4. Bc4 {[%emt 0:00:26]} Nf6 {[%emt 0:02:26]} 5. Ng5 {[%emt 0:06:49]} d5 {[%emt 0:00:39]} 6. exd5 {[%emt 1:25:07]} Na5 {[%emt 0:01:06]} 7. Qxd4 {[%emt 0:00:00]} Nxc4 {[%emt 0:03:25]} 8. Qxc4 {[%emt 0:00:00]} Bd6 {[%emt 0:00:15]} 9. Nc3 {[%emt 0:00:00]} a6 {[%emt 0:03:09]} 10. O-O {[%emt 0:00:00]} O-O {[%emt 0:02:06]} 11. Qh4 {[%emt 0:00:00]} h6 {[%emt 0:00:17]} 12. Nf3 {[%emt 0:00:00]} Nh7 {[%emt 0:06:34]} 13. Qxd8 {[%emt 0:00:00]} Rxd8 {[%emt 0:00:19]} 14. Ne4 {[%emt 0:00:00]} Bf5 {[%emt 0:00:55]} 15. Re1 {[%emt 0:00:00]} Nf8 {[%emt 0:09:01]} 16. Nxd6 {[%emt 0:00:00]} Rxd6 {[%emt 0:01:58]} 17. c4 {[%emt 0:00:00]} g5 {[%emt 0:03:06]} 18. b3 {[%emt 0:06:00]} f6 {[%emt 0:11:53]} 19. Ba3 {[%emt 0:00:00]} Rd7 {[%emt 0:02:32]} 20. Re3 {[%emt 0:00:00]} Kf7 {[%emt 0:02:05]} 21. Rae1 {[%emt 0:00:00]} Bg6 {[%emt 0:04:44]} 22. Nd4 {[%emt 0:00:00]} Kg8 {[%emt 0:03:44]} 23. h3 {[%emt 0:00:00]} Rc8 {[%emt 0:03:58]} 24. Ne6 {[%emt 0:00:00]} Rf7 {[%emt 0:04:52]} 25. Nxf8 {[%emt 0:00:00]} Rfxf8 {[%emt 0:00:19]} 26. Bxf8 {[%emt 0:00:00]} Kxf8 {[%emt 0:00:02]} 27. Re7 {[%emt 0:00:00]} Re8 {[%emt 0:02:15]} 28. Rxe8+ {[%emt 0:00:00]} Bxe8 {[%emt 0:00:06]} 29. c5 {[%emt 0:00:00]} Bd7 {[%emt 0:03:54]} 30. d6 {[%emt 0:00:00]} cxd6 {[%emt 0:01:41]} 31. cxd6 {[%emt 0:00:00]} Bc6 {[%emt 0:00:10]} 32. Re7 {[%emt 0:00:00]} f5 {[%emt 0:06:09]} 33. Rh7 {[%emt 0:00:00]} Ke8 {[%emt 0:01:27]} 34. Rxh6 {[%emt 0:00:00]} Kd7 {[%emt 0:02:16]} 35. g3 {[%emt 0:08:30]} b5 {[%emt 0:00:12]} 36. b4 {[%emt 0:00:00]} f4 {[%emt 0:02:28]} 37. gxf4 {[%emt 0:00:00]} gxf4 {[%emt 0:00:19]} 38. Rf6 {[%emt 0:00:00]} f3 {[%emt 0:00:07]} 39. h4 {[%emt 0:00:00]} Bd5 {[%emt 0:01:40]} 40. a3 {[%emt 0:00:00]} Be6 {[%emt 0:02:50]} 41. Rxe6 {[%emt 0:00:00]} Kxe6 {[%emt 0:00:42]} 42. d7 {[%emt 0:00:00]} Kxd7 {[%emt 0:00:03]} 43. Kf1 {[%emt 0:00:00]} Ke6 {[%emt 0:00:11]} 44. Ke1 {[%emt 0:00:00]} Kf5 {[%emt 0:00:02]} 45. Kd2 {[%emt 0:00:00]} Kg4 {[%emt 0:00:14]} 46. Ke3 {[%emt 0:00:00]} Kxh4 {[%emt 0:00:26]} 47. Kxf3 {[%emt 0:00:00]} Kg5 {[%emt 0:00:03]} 48. Ke4 {[%emt 0:00:00]} Kf6 {[%emt 0:00:06]} 49. Kd5 {[%emt 0:00:00]} Kf5 {[%emt 0:02:21]} 50. Kc6 {[%emt 0:00:00]} Kf4 {[%emt 0:00:02]} 51. Kb6 {[%emt 0:00:00]} Kf3 {[%emt 0:00:11]} 52. Kxa6 {[%emt 0:00:00]} Kxf2 {[%emt 0:00:02]} 53. Kxb5 {[%emt 0:00:00]} Ke2 {[%emt 0:00:25]} 54. a4 {[%emt 0:00:00]} Kd3 {[%emt 0:00:03]} 1-0

[Event "21st IPCA World Championship 2022"]
[Site "Ashdod"]
[Date "2022.05.12"]
[Round "4.12"]
[White "Freiberg, Doron"]
[Black "Volodarsky, Michael"]
[Result "1-0"]
[ECO "A32"]
[WhiteElo "1244"]
[BlackElo "1400"]
[Annotator "NA RC COMBH"]
[PlyCount "30"]
[EventDate "2022.05.09"]
[EventType "swiss"]
[EventCountry "ISR"]
[SourceTitle "playchess.com"]
[Source "ChessBase"]
[SourceQuality "1"]
[TimeControl "5400+30"]

1. d4 {[%emt 0:21:45]} d5 {[%emt 0:00:30]} 2. Nf3 {[%emt 0:00:05]} Nf6 {[%emt 0:00:23]} 3. g3 {[%emt 0:00:06]} e6 {[%emt 0:02:18]} 4. Bg2 {[%emt 0:01:14]} c5 {[%emt 0:00:16]} 5. c4 {[%emt 0:00:19]} cxd4 {[%emt 0:03:56]} 6. cxd5 {[%emt 0:01:04]} Nxd5 {[%emt 0:01:40]} 7. Nxd4 {[%emt 0:02:10]} Bb4+ {[%emt 0:02:00]} 8. Bd2 {[%emt 0:00:51]} Bxd2+ {[%emt 0:04:21]} 9. Qxd2 {[%emt 0:01:41]} O-O {[%emt 0:01:45]} 10. O-O {[%emt 0:02:38]} Qf6 {[%emt 0:05:06]} 11. e4 {[%emt 0:02:48]} Nb6 {[%emt 0:02:03]} 12. Nb5 {[%emt 1:01:49]} Qe5 {[%emt 0:06:59]} 13. N1c3 {[%emt 0:00:30]} Na6 {[%emt 0:07:21]} 14. Qe3 {[%emt 0:00:00]} Bd7 {[%emt 0:05:38]} 15. f4 {[%emt 0:00:00]} Nc4 {[%emt 0:04:06]} 1-0